bitfinex/quotes_BTCUSD_20250408
["timestamp","ask_amount","ask_price","bid_price","bid_amount"]
[1744154618144,0.00210983,76466.0,76465.0,0.013077]
[1744154619187,0.00410983,76466.0,76465.0,0.01569232]
[1744154619382,0.00210983,76466.0,76465.0,0.013077]
[1744154619592,0.00010983,76466.0,76465.0,0.01569217]
[1744154619786,0.00110983,76466.0,76465.0,0.01569217]
[1744154620211,0.00110983,76466.0,76465.0,0.14195081]
[1744154621496,0.00110983,76466.0,76465.0,0.14495081]
[1744154621679,8.3e-07,76466.0,76465.0,0.18380696]
[1744154621885,8.3e-07,76466.0,76465.0,0.22970696]
[1744154622153,0.16936,76507.0,76506.0,0.222203]
[1744154622349,0.013069,76516.0,76508.0,0.01307]
[1744154622350,0.013069,76515.0,76508.0,0.01307]
[1744154622548,0.209112,76514.0,76508.0,0.01307]
[1744154622751,0.222181,76514.0,76505.0,0.013071]
[1744154622871,0.209118,76512.0,76506.0,0.209133]
[1744154623066,0.209118,76512.0,76506.0,0.222203]
[1744154623465,0.209131,76507.0,76501.0,0.209147]
[1744154623634,0.222187,76512.0,76505.0,0.222205]
[1744154623835,0.01568376,76508.0,76505.0,0.222205]
[1744154624042,0.013071,76502.0,76495.0,0.222234]
[1744154624250,0.013071,76502.0,76471.0,0.418454]
[1744154624251,0.013071,76501.0,76491.0,0.013073]
[1744154624384,0.013072,76499.0,76491.0,0.013073]
[1744154624586,0.62295691,76501.0,76493.0,0.013073]
[1744154624810,0.20916,76497.0,76492.0,0.222244]
[1744154625022,0.209153,76499.0,76494.0,0.209166]
[1744154625422,0.209153,76499.0,76491.0,0.013073]
[1744154625626,0.209156,76498.0,76491.0,0.013073]
[1744154626053,0.209156,76498.0,76494.0,0.001]
[1744154626246,0.40073791,76501.0,76494.0,0.223235]
[1744154626461,0.01307,76507.0,76500.0,0.013071]
[1744154626662,0.36918709,76508.0,76500.0,0.222221]
[1744154626890,0.209131,76507.0,76501.0,0.013071]
[1744154627113,0.34,76504.0,76500.0,0.013071]
[1744154627292,0.222235,76495.0,76494.0,0.001]
[1744154627490,0.20916,76497.0,76490.0,0.013073]
[1744154627689,0.013071,76502.0,76500.0,0.013071]
[1744154627690,0.34,76502.0,76500.0,0.013071]
[1744154627895,0.34,76502.0,76501.0,0.209147]
[1744154628190,0.34,76502.0,76501.0,0.222218]
[1744154628386,0.34,76502.0,76497.0,0.222222]
[1744154628584,0.34,76502.0,76498.0,0.013072]
[1744154628795,0.34,76505.0,76503.0,0.20914]
[1744154628938,0.34,76505.0,76504.0,0.013071]
[1744154629143,0.209153,76499.0,76493.0,0.013073]
[1744154629344,0.002,76495.0,76494.0,0.013072]
[1744154629550,0.002,76495.0,76494.0,0.0601354]
[1744154629776,0.34,76502.0,76498.0,0.013072]
[1744154630077,0.34,76502.0,76497.0,0.22223]
[1744154630276,0.34,76502.0,76498.0,0.013072]
[1744154630476,0.013071,76504.0,76498.0,0.03176954]
[1744154630728,0.013071,76504.0,76498.0,0.013072]
[1744154631102,0.209136,76505.0,76499.0,0.222225]
[1744154631567,0.001,76502.0,76501.0,0.013071]
[1744154632502,0.0496,76536.0,76510.0,0.222192]
[1744154632703,0.01541168,76525.0,76515.0,0.222178]
[1744154632847,0.01541168,76525.0,76515.0,0.34843664]
[1744154633051,0.40073791,76530.0,76515.0,0.34843664]
[1744154633235,0.34,76529.0,76515.0,0.34843664]
[1744154633648,0.40073791,76530.0,76515.0,0.34843664]
[1744154633851,0.34,76529.0,76515.0,0.34843664]
[1744154634053,0.34,76529.0,76515.0,0.35243664]
[1744154634255,0.34,76529.0,76515.0,0.35643664]
[1744154635658,0.549073,76529.0,76515.0,0.35643664]
[1744154636065,0.20908,76526.0,76515.0,0.230178]
[1744154636271,0.20908,76526.0,76515.0,0.27241274]
[1744154637704,0.34,76527.0,76515.0,0.27241274]
[1744154637911,0.549078,76527.0,76515.0,0.27241274]
[1744154638870,0.209078,76527.0,76520.0,0.22216]
[1744154639026,0.20920406,76527.0,76521.0,0.013068]
[1744154640181,0.20909,76523.0,76517.0,0.013068]
[1744154640326,0.209082,76525.0,76519.0,0.222163]
[1744154640529,0.209092,76521.0,76520.0,0.0235262]
[1744154640782,0.209092,76521.0,76515.0,0.013069]
[1744154640982,0.209092,76521.0,76515.0,0.222176]
[1744154641196,0.209092,76521.0,76506.0,0.01307]
[1744154641197,0.209119,76512.0,76506.0,0.209131]
[1744154641401,0.209101,76518.0,76511.0,0.01307]
[1744154641555,0.209098,76519.0,76513.0,0.209112]
[1744154641761,0.00212606,76527.0,76521.0,0.013068]
[1744154641955,0.209082,76525.0,76518.0,0.013068]
[1744154642897,0.34149072,76524.0,76518.0,0.013068]
[1744154643097,0.34149072,76524.0,76518.0,0.014068]
[1744154643545,0.55057772,76524.0,76519.0,0.209098]
[1744154643813,0.55057772,76524.0,76520.0,0.0249303]
[1744154643966,0.34,76522.0,76520.0,0.0249303]
[1744154644165,0.34,76520.0,76510.0,0.01307]
[1744154644386,0.34,76520.0,76518.0,0.001]
[1744154644634,0.34,76520.0,76519.0,0.013068]
[1744154644920,0.34,76520.0,76518.0,0.223166]
[1744154645220,0.34,76520.0,76519.0,0.013068]
[1744154645415,0.00012606,76527.0,76522.0,0.013068]
[1744154645617,0.34,76526.0,76523.0,0.209087]
[1744154645822,0.00012606,76527.0,76519.0,0.013068]
[1744154646192,0.209086,76524.0,76519.0,0.013068]
[1744154646442,0.209079,76526.0,76516.0,0.209105]
[1744154646601,0.209081,76525.0,76517.0,0.222169]
[1744154646807,0.00112606,76527.0,76526.0,0.222146]
[1744154647009,0.00012606,76527.0,76526.0,0.222146]
[1744154647234,0.00012606,76527.0,76522.0,0.209089]
[1744154647555,0.34,76526.0,76523.0,0.222152]
[1744154647711,0.34,76526.0,76524.0,0.209082]
[1744154647928,0.34,76526.0,76522.0,0.013068]
[1744154648129,0.013067,76523.0,76515.0,0.013069]
[1744154648464,0.40073791,76525.0,76521.0,0.013068]
[1744154648667,0.40073791,76525.0,76512.0,0.013069]
[1744154648668,0.209124,76510.0,76503.0,0.013071]
[1744154648848,0.20912,76512.0,76506.0,0.01307]
[1744154649047,0.209126,76509.0,76503.0,0.013071]
[1744154649250,0.013071,76500.0,76493.0,0.222242]
[1744154649445,0.209131,76507.0,76500.0,0.013071]
[1744154649826,0.00149132,76506.0,76505.0,0.222207]
[1744154650028,0.00149132,76506.0,76503.0,0.215141]
[1744154650227,0.34,76509.0,76502.0,0.013071]
[1744154650431,0.00159411,76505.0,76504.0,0.013071]
[1744154650670,0.00012601,76509.0,76504.0,0.013071]
[1744154650874,0.00159411,76505.0,76504.0,0.013071]
[1744154651375,0.00012601,76509.0,76504.0,0.013071]
[1744154651596,0.00159411,76505.0,76504.0,0.013071]
[1744154651779,0.00012601,76509.0,76504.0,0.013071]
[1744154651979,0.00159411,76505.0,76504.0,0.03177364]
[1744154652185,0.00112601,76509.0,76508.0,0.01307]
[1744154652578,0.00112601,76509.0,76508.0,0.222198]
[1744154652781,0.00112601,76509.0,76508.0,0.2692563]
[1744154652986,0.00012601,76509.0,76508.0,0.2692563]
[1744154653399,0.00285717,76509.0,76508.0,0.2692563]
[1744154653601,0.00112601,76509.0,76508.0,0.2692563]
[1744154653801,0.00312601,76509.0,76508.0,0.2692563]
[1744154654607,0.00212601,76509.0,76508.0,0.2692563]
[1744154655070,0.00312601,76509.0,76508.0,0.2692563]
[1744154655590,0.00212601,76509.0,76508.0,0.2692563]
[1744154655823,0.00312601,76509.0,76508.0,0.2692563]
[1744154656222,0.00212601,76509.0,76508.0,0.2692563]
[1744154657016,0.00212601,76509.0,76507.0,0.209131]
[1744154657317,0.00212601,76509.0,76508.0,0.01307]
[1744154657692,0.00212601,76509.0,76508.0,0.01568386]
[1744154658012,0.00385717,76509.0,76508.0,0.01307]
[1744154658375,0.00385717,76509.0,76506.0,0.01307]
[1744154658597,0.00385717,76509.0,76504.0,0.209139]
[1744154658767,0.00385717,76509.0,76505.0,0.209134]
[1744154659164,0.00185717,76509.0,76505.0,0.209134]
[1744154659364,0.00185717,76509.0,76504.0,0.0457499]
[1744154659566,0.01307,76507.0,76506.0,0.001]
[1744154660020,0.00166264,76507.0,76506.0,0.001]
[1744154660229,0.00166264,76507.0,76505.0,0.001]
[1744154660376,0.20925401,76509.0,76505.0,0.024629]
[1744154660575,0.01473264,76506.0,76505.0,0.001]
[1744154660785,0.20913,76508.0,76505.0,0.001]
[1744154660987,0.00162838,76506.0,76505.0,0.001]
[1744154661191,0.20913,76508.0,76505.0,0.001]
[1744154661392,0.00162838,76506.0,76502.0,0.222213]
[1744154661731,0.00155985,76505.0,76503.0,0.0470584]
[1744154661916,0.20913,76508.0,76503.0,0.0470584]
[1744154662116,0.00159411,76507.0,76505.0,0.001]
[1744154662448,0.00159411,76507.0,76505.0,0.002]
[1744154662668,0.00159411,76507.0,76504.0,0.222208]
[1744154662948,0.00162837,76506.0,76504.0,0.222208]
[1744154663156,0.00012601,76509.0,76508.0,0.01307]
[1744154663296,0.00012601,76509.0,76508.0,0.222198]
[1744154665073,0.00112601,76509.0,76508.0,0.222198]
[1744154665238,0.00112601,76509.0,76508.0,0.01307]
[1744154665434,0.00112601,76509.0,76507.0,0.20913]
[1744154665640,0.00112601,76509.0,76508.0,0.01307]
[1744154665826,0.00112601,76509.0,76507.0,0.20913]
[1744154666242,0.013071,76500.0,76487.0,0.209183]
[1744154666452,0.36897268,76500.0,76489.0,0.013073]
[1744154666780,0.20916,76497.0,76491.0,0.209174]
[1744154666946,0.22223,76498.0,76492.0,0.222243]
[1744154667337,0.23744114,76498.0,76492.0,0.222243]
[1744154667684,0.01521114,76498.0,76494.0,0.209166]
[1744154668003,0.209149,76501.0,76496.0,0.20916]
[1744154669181,0.209149,76501.0,76496.0,0.21116]
[1744154669382,0.209152,76500.0,76496.0,0.002]
[1744154669611,0.209152,76500.0,76496.0,0.004]
[1744154669908,0.209155,76499.0,76496.0,0.004]
[1744154670313,0.209155,76499.0,76496.0,0.002]
[1744154670660,0.209155,76499.0,76494.0,0.209166]
[1744154671013,0.209155,76499.0,76496.0,0.002]
[1744154671294,0.22462225,76499.0,76496.0,0.002]
[1744154671457,0.22462225,76499.0,76496.0,0.0459559]
[1744154671629,0.22462225,76499.0,76496.0,0.0499559]
[1744154672034,0.22462225,76499.0,76496.0,0.002]
[1744154672259,0.209158,76497.0,76496.0,0.002]
[1744154672462,0.209158,76497.0,76496.0,0.004]
[1744154672882,0.013072,76498.0,76496.0,0.004]
[1744154672883,0.34,76498.0,76496.0,0.004]
[1744154673083,0.00204034,76497.0,76496.0,0.002]
[1744154673295,0.00204034,76497.0,76496.0,0.004]
[1744154674342,0.00204034,76497.0,76496.0,0.002]
[1744154674548,0.00204034,76497.0,76496.0,0.0630283]
[1744154674740,0.01546725,76499.0,76498.0,0.013072]
[1744154674983,0.34,76512.0,76507.0,0.01307]
[1744154675191,0.34,76512.0,76508.0,0.222198]
[1744154675580,0.34,76512.0,76507.0,0.222198]
[1744154675789,0.209108,76516.0,76507.0,0.222198]
[1744154675790,0.34,76513.0,76508.0,0.03287464]
[1744154676329,0.00612601,76509.0,76508.0,0.03287464]
[1744154677573,0.00412601,76509.0,76508.0,0.03287464]
[1744154677758,0.00612601,76509.0,76508.0,0.03287464]
[1744154678149,0.00612601,76509.0,76508.0,0.03548862]
[1744154678888,0.00212601,76509.0,76508.0,0.03548862]
[1744154679086,0.00012601,76509.0,76508.0,0.03548862]
[1744154679425,0.00012601,76509.0,76508.0,0.03287464]
[1744154680464,0.00012601,76509.0,76508.0,0.03548828]
[1744154680688,0.00012601,76509.0,76508.0,0.03287464]
[1744154681654,0.00012601,76509.0,76502.0,0.013071]
[1744154681967,0.013071,76502.0,76495.0,0.013072]
[1744154682170,0.00012601,76509.0,76504.0,0.209139]
[1744154682374,0.20925101,76509.0,76504.0,0.22221]
[1744154682608,0.22232101,76509.0,76504.0,0.209139]
[1744154682781,0.20925401,76509.0,76503.0,0.222212]
[1744154682961,0.2222,76508.0,76503.0,0.222212]
[1744154683163,0.222205,76506.0,76502.0,0.003]
[1744154683780,0.222198,76508.0,76503.0,0.0447441]
[1744154683997,0.22232201,76509.0,76504.0,0.013071]
[1744154684178,0.2222,76508.0,76503.0,0.2538831]
[1744154684358,0.2222,76508.0,76503.0,0.209139]
[1744154684565,0.222203,76507.0,76504.0,0.002]
[1744154685020,0.222203,76507.0,76503.0,0.209139]
[1744154685169,0.013071,76503.0,76502.0,0.002]
[1744154685369,0.01307,76506.0,76502.0,0.002]
[1744154685576,0.01307,76506.0,76502.0,0.211144]
[1744154685928,0.01307,76506.0,76504.0,0.001]
[1744154686361,0.418116,76534.0,76504.0,0.001]
[1744154686362,0.209123,76510.0,76504.0,0.001]
[1744154686954,0.00012601,76509.0,76508.0,0.222198]
[1744154688102,0.00012601,76509.0,76508.0,0.268998]
[1744154693661,1e-08,76509.0,76508.0,0.56481664]
[1744154693997,0.16956,76547.0,76546.0,0.222088]
[1744154694201,0.222069,76553.0,76547.0,0.013063]
[1744154694402,1.45438368,76556.0,76547.0,0.013063]
[1744154694403,0.00012599,76548.0,76547.0,0.013063]
[1744154694643,0.00012599,76548.0,76547.0,0.14193427]
[1744154694815,0.00012599,76548.0,76547.0,0.15151751]
[1744154695822,9.9e-07,76548.0,76547.0,0.15151751]
[1744154696025,9.9e-07,76548.0,76547.0,0.21164573]
[1744154696790,9.9e-07,76548.0,76547.0,0.21725772]
[1744154697302,9.9e-07,76548.0,76547.0,0.24287176]
[1744154697482,0.00100099,76548.0,76547.0,0.24748374]
[1744154697886,0.00100099,76548.0,76547.0,0.22064573]
[1744154698086,0.11264709,76564.0,76563.0,0.013061]
[1744154698293,0.11264709,76564.0,76563.0,0.222039]
[1744154699442,0.01502966,76569.0,76568.0,0.222024]
[1744154699945,0.34,76573.0,76569.0,0.01306]
[1744154700424,0.208961,76569.0,76564.0,0.208975]
[1744154700682,0.208961,76569.0,76563.0,0.013061]
[1744154700683,0.013059,76570.0,76563.0,0.2525478]
[1744154700957,0.013059,76571.0,76563.0,0.2495478]
[1744154701215,0.208978,76563.0,76555.0,0.222059]
[1744154701502,0.208985,76561.0,76555.0,0.222059]
[1744154701671,0.209027,76546.0,76539.0,0.222106]
[1744154701823,0.35590168,76550.0,76545.0,0.013064]
[1744154702247,0.00023877,76549.0,76545.0,0.013064]
[1744154702568,0.00034156,76549.0,76546.0,0.209024]
[1744154702977,0.00023873,76549.0,76545.0,0.013064]
[1744154703179,0.00023873,76549.0,76546.0,0.01790946]
[1744154703377,0.00023873,76549.0,76546.0,0.22693346]
[1744154703740,0.00023873,76549.0,76546.0,0.01790946]
[1744154704475,0.222084,76547.0,76545.0,0.005]
[1744154704779,0.209041,76540.0,76534.0,0.013066]
[1744154704978,0.209046,76539.0,76536.0,0.00012599]
[1744154705183,0.00017058,76539.0,76536.0,0.00012599]
[1744154705343,0.00023904,76539.0,76536.0,0.00012599]
[1744154705542,0.209049,76537.0,76536.0,0.00012599]
[1744154705927,0.54937372,76537.0,76536.0,0.00012599]
[1744154706140,0.68869736,76537.0,76536.0,0.00012599]
[1744154706341,0.6895199,76537.0,76536.0,0.00012599]
[1744154706552,0.209084,76525.0,76518.0,0.013068]
[1744154706756,0.013067,76526.0,76519.0,0.0457415]
[1744154706953,0.209105,76517.0,76512.0,0.16948]
[1744154707159,0.013069,76516.0,76506.0,0.222201]
[1744154707362,0.209112,76514.0,76508.0,0.222196]
[1744154707658,0.00145683,76513.0,76509.0,0.0261407]
[1744154707858,0.00145683,76513.0,76512.0,0.013069]
[1744154708097,0.209098,76519.0,76509.0,0.222194]
[1744154708296,0.00142242,76513.0,76509.0,0.01307]
[1744154708496,0.549103,76518.0,76511.0,0.01307]
[1744154708696,0.209103,76517.0,76512.0,0.04836]
[1744154708916,0.222171,76517.0,76512.0,0.04836]
[1744154709136,0.209103,76517.0,76512.0,0.257477]
[1744154709941,0.209112,76514.0,76509.0,0.002]
[1744154710137,0.209104,76517.0,76513.0,0.209113]
[1744154710362,0.549097,76520.0,76514.0,0.013069]
[1744154710498,0.34,76519.0,76514.0,0.013069]
[1744154710703,0.34,76519.0,76513.0,0.222181]
[1744154711316,0.34,76519.0,76514.0,0.013069]
[1744154711726,0.5491,76519.0,76514.0,0.013069]
[1744154711927,0.013069,76512.0,76504.0,0.013071]
[1744154712125,0.209135,76506.0,76500.0,0.222221]
[1744154712354,0.01307,76506.0,76499.0,0.00042039]
[1744154712549,0.209142,76503.0,76499.0,0.00042039]
[1744154712730,0.209147,76502.0,76499.0,0.00042039]
[1744154712924,0.209149,76501.0,76499.0,0.00042039]
[1744154713134,0.34,76510.0,76507.0,0.209128]
[1744154713475,0.34,76510.0,76507.0,0.023527]
[1744154713476,0.549125,76510.0,76507.0,0.023527]
[1744154714041,0.34,76510.0,76507.0,0.232655]
[1744154714237,0.40025469,76514.0,76507.0,0.232655]
[1744154714238,0.74025469,76514.0,76513.0,0.222183]
[1744154714440,0.34,76514.0,76513.0,0.222183]
[1744154714863,0.34,76513.0,76511.0,0.209118]
[1744154715029,0.209106,76517.0,76511.0,0.209118]
[1744154715223,0.209106,76517.0,76511.0,0.222188]
[1744154715816,0.002,76514.0,76511.0,0.222188]
[1744154716103,0.01307,76511.0,76503.0,0.209141]
[1744154716272,0.34,76509.0,76505.0,0.26799694]
[1744154716475,0.34,76509.0,76507.0,0.2222]
[1744154716691,0.34,76509.0,76508.0,0.01307]
[1744154717100,0.34,76509.0,76507.0,0.2222]
[1744154717259,0.34,76511.0,76508.0,0.019969]
[1744154717459,0.34,76511.0,76509.0,0.209125]
[1744154717668,0.34,76511.0,76508.0,0.019969]
[1744154718207,0.00162826,76510.0,76508.0,0.019969]
[1744154718708,0.00162826,76510.0,76509.0,0.0385945]
[1744154718883,0.001,76514.0,76510.0,0.222192]
[1744154719281,0.00159389,76513.0,76510.0,0.222192]
[1744154720172,0.00159389,76513.0,76512.0,0.222186]
[1744154720449,0.34,76517.0,76512.0,0.222186]
[1744154720641,0.00152526,76513.0,76512.0,0.222186]
[1744154720878,0.34,76517.0,76516.0,0.222175]
[1744154721330,0.34,76520.0,76516.0,0.222175]
[1744154722307,0.013068,76518.0,76513.0,0.209114]
[1744154722512,0.222169,76518.0,76513.0,0.2548586]
[1744154722710,0.222169,76518.0,76513.0,0.209114]
[1744154722909,0.341,76520.0,76513.0,0.013069]
[1744154723114,0.07988855,76520.0,76513.0,0.013069]
[1744154723340,0.001,76517.0,76513.0,0.013069]
[1744154723871,0.013068,76520.0,76513.0,0.013069]
[1744154724032,0.013068,76520.0,76514.0,0.0248332]
[1744154724215,0.01533986,76526.0,76521.0,0.20909]
[1744154724426,0.209081,76525.0,76520.0,0.013068]
[1744154724800,0.013067,76525.0,76517.0,0.013068]
[1744154725098,0.013068,76522.0,76517.0,0.04092774]
[1744154725322,0.209113,76514.0,76509.0,0.222193]
[1744154725527,0.209103,76517.0,76510.0,0.01307]
[1744154725724,0.209103,76517.0,76511.0,0.01307]
[1744154726103,0.222169,76518.0,76512.0,0.222184]
[1744154726459,0.222169,76518.0,76513.0,0.0274464]
[1744154726614,0.209108,76516.0,76513.0,0.0274464]
[1744154726971,0.22218,76515.0,76513.0,0.0274464]
[1744154727167,0.013071,76502.0,76499.0,0.00042039]
[1744154727367,0.013071,76500.0,76499.0,0.00042039]
[1744154728386,0.013071,76500.0,76499.0,0.00442039]
[1744154728993,0.209145,76502.0,76499.0,0.00442039]
[1744154729310,0.209137,76505.0,76499.0,0.02708633]
[1744154729467,0.209144,76503.0,76499.0,0.02708633]
[1744154729664,0.40025469,76509.0,76503.0,0.013071]
[1744154729866,0.60935169,76520.0,76513.0,0.209112]
[1744154730050,0.209113,76514.0,76509.0,0.01307]
[1744154730253,0.01307,76506.0,76499.0,0.00042039]
[1744154730467,0.209147,76501.0,76499.0,0.00042039]
[1744154730664,0.013071,76500.0,76499.0,0.00042039]
[1744154731521,0.013071,76500.0,76499.0,0.00242039]
[1744154731749,0.013071,76500.0,76499.0,0.00342039]
[1744154732715,0.013071,76500.0,76499.0,0.00142039]
[1744154733227,0.013071,76500.0,76499.0,0.00342039]
[1744154734060,0.222207,76505.0,76499.0,0.00342039]
[1744154734273,0.209116,76513.0,76499.0,0.00342039]
[1744154734274,0.209116,76513.0,76505.0,0.013071]
[1744154734476,0.209124,76510.0,76505.0,0.013071]
[1744154734676,0.60938169,76509.0,76504.0,0.209138]
[1744154734886,0.41332269,76520.0,76508.0,0.222198]
[1744154735088,0.013068,76517.0,76511.0,0.01307]
[1744154735290,0.3557784,76521.0,76509.0,0.01307]
[1744154735549,0.3557784,76521.0,76520.0,0.013068]
[1744154735788,0.22367345,76526.0,76521.0,0.209092]
[1744154735975,0.209089,76523.0,76518.0,0.209101]
[1744154736411,0.209089,76523.0,76519.0,0.044434]
[1744154736617,0.222156,76523.0,76519.0,0.044434]
[1744154736824,0.222156,76523.0,76515.0,0.013069]
[1744154736825,0.209093,76521.0,76515.0,0.222175]
[1744154737087,0.209093,76521.0,76499.0,0.12667903]
[1744154737088,0.01307,76507.0,76499.0,0.00042039]
[1744154737314,0.01307,76506.0,76500.0,0.222218]
[1744154737511,0.01307,76508.0,76502.0,0.222215]
[1744154737717,0.40038564,76510.0,76506.0,0.01307]
[1744154738733,0.209125,76509.0,76505.0,0.209134]
[1744154739505,0.40038564,76510.0,76505.0,0.222205]
[1744154739709,0.40038564,76510.0,76507.0,0.222198]
[1744154740012,0.209111,76515.0,76510.0,0.22219]
[1744154740234,0.209111,76515.0,76508.0,0.209126]
[1744154740759,0.34,76514.0,76508.0,0.209126]
[1744154741407,0.34,76514.0,76507.0,0.223198]
[1744154741408,0.549114,76514.0,76507.0,0.223198]
[1744154741607,0.34,76512.0,76507.0,0.223198]
[1744154741822,0.549119,76512.0,76508.0,0.047155]
[1744154742103,0.34,76512.0,76508.0,0.047155]
[1744154742716,0.34,76512.0,76508.0,0.049155]
[1744154742918,0.34,76512.0,76508.0,0.048155]
[1744154743132,0.34,76512.0,76508.0,0.047155]
[1744154743309,0.562195,76509.0,76508.0,0.001]
[1744154743515,0.562195,76509.0,76508.0,0.002]
[1744154744096,0.562195,76509.0,76508.0,0.001]
[1744154744719,0.209134,76506.0,76500.0,0.222219]
[1744154744916,0.209134,76506.0,76501.0,0.209145]
[1744154745695,0.209139,76504.0,76499.0,0.00042039]
[1744154745916,0.222204,76506.0,76499.0,0.00042039]
[1744154745917,0.20915,76500.0,76499.0,0.00042039]
[1744154746404,0.222221,76500.0,76499.0,0.00042039]
[1744154746604,0.209147,76501.0,76499.0,0.00042039]
[1744154746803,0.549138,76505.0,76499.0,0.01849239]
[1744154747067,0.24991953,76504.0,76499.0,0.22764239]
[1744154747266,0.20914,76504.0,76499.0,0.23264239]
[1744154747471,0.20914,76504.0,76499.0,0.22264239]
[1744154747647,0.209147,76502.0,76500.0,0.02587864]
[1744154747855,0.209147,76502.0,76499.0,0.00042039]
[1744154748017,0.209149,76501.0,76499.0,0.00042039]
[1744154748470,0.209147,76502.0,76499.0,0.00042039]
[1744154749015,0.20914,76504.0,76499.0,0.00042039]
[1744154749533,0.34,76506.0,76504.0,0.222208]
[1744154749741,0.34,76506.0,76504.0,0.24839224]
[1744154750074,0.34,76509.0,76504.0,0.24839224]
[1744154750275,0.549127,76509.0,76504.0,0.013071]
[1744154750474,0.209128,76508.0,76500.0,0.013071]
[1744154750722,0.60951064,76510.0,76503.0,0.22221]
[1744154751068,0.209127,76509.0,76503.0,0.013071]
[1744154751273,0.01307,76508.0,76500.0,0.22222]
[1744154751477,0.209136,76506.0,76501.0,0.26800974]
[1744154751885,0.210136,76506.0,76501.0,0.26800974]
[1744154752391,0.209136,76506.0,76501.0,0.26800974]
[1744154752590,0.34,76508.0,76503.0,0.222212]
[1744154753375,0.54913,76508.0,76503.0,0.222212]
[1744154753595,0.54913,76508.0,76504.0,0.0199672]
[1744154754169,0.54913,76508.0,76503.0,0.013071]
[1744154754822,0.34,76508.0,76507.0,0.01307]
[1744154755037,0.34,76508.0,76504.0,0.013071]
[1744154755253,0.341,76508.0,76504.0,0.013071]
[1744154755699,0.341,76508.0,76506.0,0.209133]
[1744154755904,0.34,76511.0,76506.0,0.222203]
[1744154756102,0.002,76508.0,76506.0,0.222203]
[1744154756509,0.34,76511.0,76507.0,0.209129]
[1744154756675,0.34,76511.0,76510.0,0.209122]
[1744154756875,0.34,76514.0,76509.0,0.222194]
[1744154757103,0.34,76512.0,76504.0,0.013071]
[1744154757327,0.01307,76510.0,76503.0,0.22221]
[1744154757715,0.222193,76510.0,76504.0,0.222208]
[1744154758582,0.222193,76510.0,76505.0,0.209134]
[1744154758948,0.34,76512.0,76507.0,0.20913]
[1744154759134,0.549118,76512.0,76507.0,0.20913]
[1744154760196,0.550118,76512.0,76507.0,0.20913]
[1744154760596,0.341,76512.0,76508.0,0.209127]
[1744154760797,0.341,76512.0,76508.0,0.222197]
[1744154760995,0.001,76512.0,76509.0,0.222193]
[1744154761438,0.34,76514.0,76509.0,0.222193]
[1744154761612,0.04079985,76513.0,76509.0,0.222193]
[1744154761823,0.001,76512.0,76509.0,0.01307]
[1744154762056,0.341,76512.0,76508.0,0.222197]
[1744154762202,0.34,76512.0,76508.0,0.222197]
[1744154763034,0.222142,76528.0,76520.0,0.222161]
[1744154763210,0.04079349,76525.0,76524.0,0.222151]
[1744154763414,0.35579943,76540.0,76536.0,0.013065]
[1744154763764,0.11659403,76545.0,76544.0,0.222094]
[1744154764554,0.1167199,76545.0,76544.0,0.222094]
[1744154764767,0.1167199,76545.0,76541.0,0.013064]
[1744154765114,0.1167199,76545.0,76542.0,0.209035]
[1744154765319,0.1167199,76545.0,76542.0,0.25257984]
[1744154765517,0.1167199,76545.0,76543.0,0.20903]
[1744154765724,0.1167199,76545.0,76544.0,0.13932264]
[1744154765987,0.208943,76576.0,76544.0,0.13932264]
[1744154765988,0.36885743,76580.0,76573.0,0.013059]
[1744154766263,0.32552203,76582.0,76581.0,0.221987]
[1744154766264,0.11659403,76582.0,76581.0,0.221987]
[1744154766473,0.11659403,76582.0,76581.0,0.013058]
[1744154766679,0.47116707,76582.0,76581.0,0.013058]
[1744154766792,0.34,76581.0,76578.0,0.013058]
[1744154767184,0.13116707,76582.0,76581.0,0.221987]
[1744154767740,0.13116707,76582.0,76580.0,0.013058]
[1744154768324,0.11659403,76582.0,76581.0,0.34824564]
[1744154768979,0.12159403,76582.0,76581.0,0.34824564]
[1744154769290,0.00012597,76584.0,76583.0,0.013057]
[1744154769490,0.00012597,76584.0,76583.0,0.14192656]
[1744154769721,0.00012597,76584.0,76583.0,0.13931564]
[1744154769855,0.00012597,76584.0,76581.0,0.014058]
[1744154770050,0.00012597,76584.0,76583.0,0.013057]
[1744154770252,0.00012597,76584.0,76581.0,0.002]
[1744154770452,0.013057,76582.0,76581.0,0.002]
[1744154770903,0.208923,76583.0,76581.0,0.002]
[1744154771056,0.22198,76583.0,76581.0,0.002]
[1744154771264,0.22198,76583.0,76577.0,0.013058]
[1744154771891,0.20904697,76584.0,76577.0,0.013058]
[1744154772203,0.013058,76578.0,76570.0,0.222017]
[1744154772413,0.013058,76578.0,76571.0,0.0587698]
[1744154772612,0.013058,76578.0,76571.0,0.0457108]
[1744154772613,0.20894,76577.0,76571.0,0.0457108]
[1744154772852,0.208948,76574.0,76571.0,0.0457108]
[1744154773041,0.208948,76574.0,76541.0,1.0358]
[1744154773042,0.222023,76569.0,76562.0,0.013061]
[1744154773242,0.013061,76563.0,76555.0,0.208998]
[1744154773449,0.208981,76562.0,76556.0,0.013062]
[1744154773666,0.01306,76564.0,76558.0,0.013061]
[1744154773850,0.35579943,76565.0,76562.0,0.013061]
[1744154774004,0.208968,76567.0,76562.0,0.013061]
[1744154774208,0.208968,76567.0,76561.0,0.208982]
[1744154774432,0.208968,76567.0,76562.0,0.01276996]
[1744154775012,0.208973,76565.0,76562.0,0.01276996]
[1744154775215,0.208978,76563.0,76558.0,0.013061]
[1744154775428,0.208973,76565.0,76559.0,0.208989]
[1744154775632,0.208973,76565.0,76559.0,0.22205]
[1744154776551,0.013059,76570.0,76562.0,0.013061]
[1744154776702,0.013059,76570.0,76563.0,0.0457157]